bitfinex-derivatives/quotes_BNBF0:USTF0_20251002
["timestamp","ask_amount","ask_price","bid_price","bid_amount"]
[1759407961709,0.8497584,1053.7,1053.3,1.078]
[1759407962006,0.8497584,1053.6,1053.3,1.078]
[1759407962209,0.8497584,1053.5,1053.3,1.078]
[1759407962712,1.27463761,1053.8,1053.3,1.078]
[1759407962716,0.8497584,1053.6,1053.3,1.078]
[1759407963610,0.8497584,1053.7,1053.3,1.078]
[1759407963810,0.8497584,1053.8,1053.3,1.078]
[1759407965807,0.8497584,1053.9,1053.3,1.078]
[1759407968208,0.8497584,1053.8,1053.3,1.078]
[1759407968410,0.8497584,1053.7,1053.3,1.078]
[1759407969412,0.8497584,1053.6,1053.3,1.078]
[1759407972817,0.8497584,1053.7,1053.3,1.078]
[1759407973212,0.8497584,1053.6,1053.3,1.078]
[1759407973510,1.27463761,1053.5,1053.3,1.078]
[1759407973715,1.27463761,1053.4,1053.3,1.078]
[1759407976619,2.14492934,1054.1,1053.3,1.078]
[1759407976620,1.27463761,1053.6,1053.3,1.078]
[1759407977119,0.85026312,1053.4,1053.3,1.078]
[1759407979321,0.85026312,1053.5,1053.3,1.078]
[1759407979526,0.85026312,1053.7,1053.3,1.078]
[1759407979924,0.85026312,1053.9,1053.3,1.078]
[1759407981729,0.85026312,1053.8,1053.3,1.078]
[1759407982726,0.85026312,1053.9,1053.3,1.078]
[1759407984430,0.85026312,1054.0,1053.3,1.078]
[1759407986333,0.85026312,1053.8,1053.3,1.078]
[1759407987128,0.16519471,1053.9,1053.3,1.078]
[1759407988731,1.01545783,1053.9,1053.3,1.078]
[1759407989232,1.01545783,1053.9,1053.2,1.12717484]
[1759407989432,0.16519471,1053.9,1053.2,1.12717484]
[1759407993331,0.16519471,1053.9,1053.3,1.081]
[1759407999135,1.01545783,1053.9,1053.3,1.081]
[1759408000237,0.85026312,1053.8,1053.3,1.081]
[1759408000436,0.85026312,1053.7,1053.3,1.081]
[1759408001037,0.85026312,1053.6,1053.3,1.077]
[1759408001242,0.85026312,1053.5,1053.3,1.077]
[1759408004039,0.85026312,1053.4,1053.3,1.077]
[1759408005647,0.85026312,1053.8,1053.3,1.077]
[1759408007948,0.85026312,1053.7,1053.3,1.077]
[1759408010052,0.85026312,1053.6,1053.3,1.077]
[1759408010350,0.85026312,1053.5,1053.3,1.077]
[1759408013849,0.85026312,1053.6,1053.3,1.077]
[1759408014048,0.85026312,1053.7,1053.3,1.077]
[1759408019857,0.85026312,1053.6,1053.3,1.077]
[1759408022357,0.85026312,1053.8,1053.3,1.077]
[1759408025761,1.01545783,1053.9,1053.3,1.077]
[1759408028061,0.85026312,1053.8,1053.3,1.077]
[1759408028465,0.16519471,1053.9,1053.3,1.077]
[1759408033264,0.16519471,1053.9,1053.2,1.12717484]
[1759408036867,0.16519471,1053.9,1053.3,0.894]
[1759408037169,0.16519471,1053.9,1053.3,0.898]
[1759408038568,1.01545783,1053.9,1053.3,0.898]
[1759408041774,0.16519471,1053.9,1053.3,0.898]
[1759408044276,0.85026312,1054.5,1053.3,0.898]
[1759408044474,0.85026312,1055.1,1053.3,0.898]
[1759408044675,0.16511006,1054.4,1053.3,0.898]
[1759408044976,0.85026312,1054.6,1053.3,0.898]
[1759408045179,0.16510614,1054.4,1053.3,0.898]
[1759408075289,0.85026312,1055.1,1053.3,0.898]
[1759408075693,0.16507638,1054.6,1053.3,0.898]
[1759408076889,0.16507638,1054.6,1053.3,0.004]
[1759408080393,0.16507638,1054.6,1053.4,1.086]
[1759408080691,0.16507638,1054.6,1053.5,1.15632316]
[1759408081691,0.85026312,1055.2,1053.5,1.15632316]
[1759408081896,0.85026312,1055.4,1053.5,1.15632316]
[1759408082094,0.16503333,1054.9,1053.5,1.15632316]
[1759408082794,0.85026312,1055.5,1053.5,1.15632316]
[1759408083195,0.16500672,1055.2,1053.5,1.15632316]
[1759408088399,0.16500672,1055.2,1053.5,1.78161243]
[1759408090204,0.16500672,1055.2,1053.5,1.15632316]
[1759408095602,0.16500672,1055.2,1053.6,0.83]
[1759408095806,0.16500672,1055.2,1053.6,0.834]
[1759408099402,0.16500672,1055.2,1053.6,1.45928927]
[1759408099603,0.16500672,1055.2,1053.6,0.834]
[1759408100305,0.16500672,1055.2,1053.6,1.45928927]
[1759408105010,0.16500672,1055.2,1053.6,1.46198596]
[1759408107404,0.16500672,1055.2,1053.6,0.834]
[1759408109808,1.01526984,1055.2,1053.6,0.834]
[1759408112012,0.16500672,1055.2,1053.6,0.834]
[1759408114914,1.01526984,1055.2,1053.6,0.834]
[1759408116215,0.16500672,1055.2,1053.6,0.834]
[1759408118516,1.01526984,1055.2,1053.6,0.834]
[1759408122020,0.16500672,1055.2,1053.6,0.834]
[1759408128922,1.01526984,1055.2,1053.6,0.834]
[1759408130822,0.85026312,1055.1,1053.6,0.834]
[1759408133928,0.85026312,1055.0,1053.6,0.834]
[1759408134428,0.85026312,1054.9,1053.6,0.834]
[1759408136434,0.85026312,1054.7,1053.6,0.834]
[1759408138235,0.85026312,1054.8,1053.6,0.834]
[1759408142837,0.85026312,1054.7,1053.6,0.834]
[1759408143542,0.85026312,1054.9,1053.6,0.834]
[1759408144641,0.85026312,1055.0,1053.6,0.834]
[1759408145537,0.85026312,1054.9,1053.6,0.834]
[1759408145939,0.85026312,1054.9,1053.6,0.83]
[1759408146447,0.85026312,1054.8,1053.6,0.83]
[1759408147249,0.85026312,1054.9,1053.6,0.83]
[1759408147547,0.85026312,1054.8,1053.6,0.83]
[1759408148545,0.85026312,1054.7,1053.6,0.83]
[1759408148747,0.85026312,1054.6,1052.8,0.6288262]
[1759408148945,0.85026312,1054.7,1052.8,0.6288262]
[1759408152151,0.85026312,1054.7,1052.7,0.6288262]
[1759408152647,0.85026312,1054.7,1052.8,1.051]
[1759408153049,0.85026312,1054.6,1052.8,1.6798262]
[1759408154453,0.85026312,1054.8,1052.9,0.6288262]
[1759408154653,0.85026312,1054.7,1052.9,0.6288262]
[1759408156350,0.85026312,1054.8,1053.0,0.6288262]
[1759408156650,0.85026312,1055.0,1053.0,0.6288262]
[1759408157053,0.85026312,1055.1,1053.0,0.6288262]
[1759408160152,0.85026312,1055.0,1053.1,0.6288262]
[1759408163058,1.43964433,1055.2,1053.1,0.6288262]
[1759408163059,0.85026312,1054.9,1053.1,0.6288262]
[1759408163763,0.85026312,1054.8,1053.1,0.6288262]
[1759408165763,0.85026312,1054.7,1053.1,0.6288262]
[1759408165964,0.85026312,1054.8,1053.2,0.6288262]
[1759408166762,0.85026312,1054.8,1053.3,0.6288262]
[1759408167266,0.85026312,1054.9,1053.3,0.6288262]
[1759408168868,0.85026312,1054.9,1053.3,0.63015533]
[1759408171471,0.85026312,1055.0,1053.3,0.63015533]
[1759408175272,0.85026312,1054.9,1053.3,0.63015533]
[1759408175973,0.85026312,1055.0,1053.3,0.63015533]
[1759408181778,0.16500672,1055.2,1053.7,0.63015533]
[1759408183578,0.16500672,1055.2,1053.6,0.63015533]
[1759408184179,0.16500672,1055.2,1053.5,0.63015533]
[1759408184981,0.16500672,1055.2,1053.6,0.63015533]
[1759408185381,0.16500672,1055.2,1053.7,0.63015533]
[1759408185682,0.16500672,1055.2,1053.6,0.63015533]
[1759408187777,0.16500672,1055.2,1053.7,1.018]
[1759408193083,1.01526984,1055.2,1053.7,1.018]
[1759408193385,0.16500672,1055.2,1053.7,1.018]
[1759408201788,1.27463761,1055.8,1053.7,1.018]
[1759408201988,0.85026312,1056.1,1053.7,1.018]
[1759408202192,0.16498716,1055.3,1053.7,1.018]
[1759408202489,0.85026312,1056.1,1053.8,0.63015533]
[1759408202794,0.16494415,1055.6,1053.8,0.63015533]
[1759408203390,0.16494415,1055.6,1053.9,0.63015533]
[1759408204097,0.16494415,1055.6,1053.8,0.63015533]
[1759408206499,0.16494415,1055.6,1053.9,0.63015533]
[1759408206699,0.16494415,1055.6,1053.8,0.63015533]
[1759408208904,0.16494415,1055.6,1053.7,1.64815533]
[1759408209603,0.16494415,1055.6,1053.8,0.63015533]
[1759408209802,0.16494415,1055.6,1053.9,0.63015533]
[1759408210103,0.16494415,1055.6,1053.7,1.86912856]
[1759408210104,0.16494415,1055.6,1053.8,0.63015533]
[1759408212505,0.16494415,1055.6,1053.7,1.018]
[1759408212709,0.16494415,1055.6,1053.7,1.64815533]
[1759408213705,0.16494415,1055.6,1053.7,1.018]
[1759408214404,1.01520727,1055.6,1053.7,1.64815533]
[1759408214609,1.01520727,1055.6,1053.7,1.018]
[1759408215708,0.16494415,1055.6,1053.7,1.018]
[1759408216006,1.01520727,1055.6,1053.7,1.018]
[1759408216810,0.85026312,1055.5,1053.7,1.018]
[1759408217406,0.85026312,1055.4,1053.7,1.018]
[1759408218507,0.85026312,1055.3,1053.7,1.018]
[1759408221014,0.85026312,1055.4,1053.7,1.018]
[1759408221214,0.85026312,1055.4,1053.8,1.11806279]
[1759408225112,0.85026312,1055.5,1053.8,1.11806279]
[1759408227716,0.85026312,1055.2,1053.8,1.11806279]
[1759408227913,0.85026312,1055.4,1053.8,1.11806279]
[1759408228514,0.85026312,1055.1,1053.8,1.11806279]
[1759408229418,0.85026312,1055.2,1053.8,1.11806279]
[1759408229818,0.85026312,1055.1,1053.8,1.11806279]
[1759408231620,0.85026312,1055.2,1053.8,1.11806279]
[1759408231820,0.85026312,1055.2,1053.9,0.989]
[1759408232019,0.85026312,1055.4,1053.9,0.989]
[1759408232621,0.85026312,1055.2,1053.9,0.989]
[1759408233318,0.85026312,1055.3,1053.9,0.989]
[1759408234215,0.85026312,1055.2,1053.9,0.989]
[1759408234517,0.85026312,1055.3,1053.9,0.989]
[1759408241122,0.85026312,1055.2,1053.9,0.989]
[1759408243924,0.85026312,1055.3,1053.9,0.989]
[1759408244125,0.85026312,1055.2,1053.9,0.989]
[1759408244427,0.85026312,1055.4,1053.9,0.989]
[1759408246625,0.85026312,1055.3,1053.9,0.989]
[1759408247028,0.85026312,1055.2,1053.9,0.989]
[1759408247428,0.85026312,1055.1,1053.9,0.989]
[1759408251132,0.85026312,1055.2,1053.9,0.989]
[1759408253030,0.85026312,1055.1,1053.9,0.989]
[1759408255938,0.85026312,1055.0,1053.9,0.989]
[1759408257236,0.85026312,1055.1,1053.9,0.989]
[1759408258938,0.85026312,1054.9,1053.8,1.11806279]
[1759408259241,0.85026312,1055.0,1053.8,1.11806279]
[1759408260737,0.85026312,1055.3,1053.8,1.11806279]
[1759408262240,0.85026312,1055.3,1053.9,1.16229319]
[1759408262645,0.85026312,1055.3,1054.0,0.711]
[1759408263344,0.85026312,1055.0,1054.0,0.711]
[1759408264344,0.85026312,1054.8,1054.0,0.711]
[1759408264545,0.85026312,1054.7,1054.0,0.711]
[1759408265044,0.85026312,1054.6,1054.0,0.711]
[1759408265642,0.85026312,1054.6,1054.1,1.1184717]
[1759408267345,0.85026312,1054.6,1054.0,0.711]
[1759408268347,0.85026312,1054.5,1054.0,0.711]
[1759408269642,0.85026312,1054.4,1054.0,0.711]
[1759408273348,0.85026312,1054.6,1054.0,0.711]
[1759408275151,0.85026312,1054.7,1054.0,0.711]
[1759408278153,0.85026312,1054.8,1054.0,0.711]
[1759408278753,0.85026312,1054.7,1054.0,0.711]
[1759408279352,0.85026312,1054.8,1054.0,0.711]
[1759408279756,0.85026312,1054.9,1054.0,0.711]
[1759408280057,0.85026312,1055.0,1054.0,0.711]
[1759408280255,0.85026312,1055.3,1054.0,0.711]
[1759408280453,0.85026312,1055.4,1054.0,0.711]
[1759408282962,0.85026312,1055.3,1054.0,0.711]
[1759408285363,0.85026312,1055.2,1054.0,0.711]
[1759408286564,0.85026312,1055.3,1054.0,0.711]
[1759408287465,0.85026312,1055.2,1054.0,0.711]
[1759408289569,0.85026312,1055.1,1054.0,0.711]
[1759408289765,0.85026312,1055.2,1054.0,0.711]
[1759408291168,0.85026312,1055.1,1054.0,0.711]
[1759408291368,0.85026312,1055.2,1054.0,0.711]
[1759408294567,0.85026312,1055.3,1054.0,0.711]
[1759408298271,0.85026312,1055.4,1054.0,0.711]
[1759408298669,1.43958176,1055.6,1054.0,0.711]
[1759408298670,0.85026312,1055.5,1054.0,0.711]
[1759408299273,0.85026312,1055.4,1054.0,0.711]
[1759408299472,0.85026312,1055.5,1054.0,0.711]
[1759408300174,0.85026312,1055.4,1054.0,0.711]
[1759408300570,0.85026312,1055.5,1054.0,0.711]
[1759408300774,0.85026312,1055.5,1053.9,1.12679228]
[1759408301373,0.16494415,1055.6,1053.9,1.12679228]
[1759408303674,1.01520727,1055.6,1053.9,1.12679228]
[1759408304070,1.01520727,1055.6,1054.0,0.836]
[1759408304268,1.01520727,1055.6,1054.0,0.84]
[1759408305474,0.85026312,1055.5,1054.0,0.84]
[1759408305773,1.01520727,1055.6,1054.0,0.84]
[1759408308774,0.16494415,1055.6,1054.0,0.84]
[1759408310978,1.01520727,1055.6,1054.0,0.84]
[1759408311175,0.85026312,1055.5,1054.0,0.84]
[1759408311377,0.85026312,1055.3,1054.0,0.84]
[1759408311780,0.85026312,1055.2,1054.0,0.84]
[1759408312478,0.85026312,1055.1,1054.0,0.84]
[1759408316278,0.85026312,1055.2,1054.0,0.84]
[1759408320980,0.85026312,1055.2,1054.0,0.004]
[1759408324683,0.85026312,1055.3,1054.0,0.004]
[1759408324882,0.85026312,1055.3,1054.1,1.108]
[1759408327186,0.85026312,1055.2,1054.1,1.108]
[1759408329094,0.85026312,1055.1,1054.1,1.108]
[1759408331188,0.85026312,1055.0,1054.1,1.108]
[1759408332890,0.85026312,1054.9,1054.1,1.108]
[1759408333090,0.85026312,1054.8,1054.1,1.108]
[1759408333689,0.85026312,1054.9,1054.1,1.108]
[1759408336994,0.85026312,1054.8,1054.1,1.108]
[1759408338394,0.85026312,1055.0,1054.1,1.108]
[1759408338793,0.85026312,1054.8,1054.1,1.108]
[1759408339390,0.85026312,1054.9,1054.1,1.108]
[1759408339895,0.85026312,1055.0,1054.1,1.108]
[1759408344996,0.85026312,1055.1,1054.1,1.108]
[1759408345197,0.85026312,1055.0,1054.1,1.108]
[1759408345395,0.16494415,1055.6,1054.1,1.108]
[1759408345396,0.85026312,1054.8,1054.1,1.108]
[1759408346397,0.85026312,1054.7,1054.1,1.108]
[1759408346598,0.85026312,1054.8,1054.1,1.108]
[1759408346801,0.85026312,1054.7,1054.1,1.108]
[1759408350005,0.85026312,1054.6,1054.1,1.108]
[1759408350205,0.85026312,1054.7,1054.1,1.108]
[1759408350499,0.85026312,1054.6,1054.1,1.108]
[1759408351002,0.85026312,1054.5,1054.1,1.108]
[1759408351704,0.85026312,1054.4,1054.1,1.108]
[1759408352004,1.27463761,1054.6,1054.1,1.108]
[1759408352005,0.85026312,1054.5,1054.1,1.108]
[1759408352304,0.85026312,1054.6,1054.1,1.108]
[1759408352501,0.85026312,1054.7,1054.1,1.108]
[1759408353800,0.85026312,1054.8,1054.1,1.108]
[1759408354803,0.85026312,1054.9,1054.1,1.108]
[1759408355000,0.85026312,1054.8,1054.1,1.108]
[1759408356702,0.85026312,1054.9,1054.1,1.108]
[1759408360710,0.85026312,1055.0,1054.1,1.108]
[1759408362709,0.85026312,1054.9,1054.1,1.108]
[1759408363411,0.85026312,1054.8,1054.1,1.108]
[1759408364616,0.85026312,1054.7,1054.1,1.108]
[1759408364916,0.85026312,1054.6,1054.1,1.108]
[1759408365113,0.85026312,1054.4,1054.1,1.108]
[1759408367016,0.85026312,1054.6,1054.1,1.108]
[1759408367312,0.85026312,1054.7,1054.1,1.108]
[1759408367816,0.85026312,1054.5,1054.1,1.108]
[1759408372822,0.85026312,1054.8,1054.1,1.108]
[1759408373423,0.85026312,1054.7,1054.1,1.108]
[1759408373619,0.16494415,1055.6,1054.1,1.108]
[1759408373620,0.85026312,1054.8,1054.1,1.108]
[1759408380621,0.85026312,1054.8,1054.0,0.004]
[1759408381828,0.85026312,1054.6,1054.0,0.004]
[1759408382325,0.85026312,1054.5,1054.0,0.004]
[1759408383229,0.85026312,1054.5,1054.0,0.887]
[1759408383428,0.85026312,1054.6,1054.0,0.887]
[1759408383729,0.85026312,1054.5,1054.0,0.887]
[1759408383928,0.85026312,1054.6,1054.0,0.887]
[1759408384230,0.85026312,1054.5,1054.0,0.887]
[1759408385830,0.85026312,1054.6,1054.0,0.887]
[1759408388732,0.85026312,1054.5,1054.0,0.887]
[1759408389028,0.85026312,1054.6,1054.0,0.887]
[1759408389930,0.85026312,1054.7,1054.0,0.887]
[1759408390230,0.85026312,1054.8,1054.0,0.887]
[1759408390431,0.85026312,1054.7,1054.1,1.29770751]
[1759408390730,0.85026312,1054.8,1054.1,1.29770751]
[1759408391231,0.85026312,1054.9,1054.1,1.29770751]
[1759408391933,0.85026312,1055.0,1054.1,1.29770751]
[1759408392234,0.85026312,1054.7,1054.1,1.29770751]
[1759408394030,0.85026312,1054.9,1054.1,1.29770751]
[1759408394231,0.85026312,1054.8,1054.1,1.29770751]
[1759408394433,0.85026312,1054.9,1054.1,1.29770751]
[1759408396032,0.85026312,1055.0,1054.1,1.29770751]
[1759408397131,0.85026312,1055.1,1054.1,1.29770751]
[1759408398030,0.85026312,1055.0,1054.1,1.29770751]
[1759408398435,0.85026312,1055.1,1054.1,1.29770751]
[1759408398635,0.85026312,1055.0,1054.1,1.29770751]
[1759408399035,0.85026312,1054.9,1054.1,1.29770751]
[1759408399334,0.85026312,1055.2,1054.1,1.29770751]
[1759408401434,0.85026312,1055.1,1054.1,1.29770751]
[1759408401838,0.85026312,1055.2,1054.1,1.29770751]
[1759408403139,0.16500868,1055.0,1054.1,1.29770751]
[1759408405836,0.85026312,1055.4,1054.1,1.29770751]
[1759408406244,0.16498403,1055.2,1054.1,1.29770751]
[1759408433770,1.01524715,1055.2,1054.1,1.29770751]
[1759408433969,0.85026312,1055.1,1054.1,1.29770751]
[1759408435164,0.85026312,1055.0,1054.1,1.29770751]
[1759408436371,0.85026312,1054.9,1054.1,1.29770751]
[1759408436566,0.85026312,1054.8,1054.1,1.29770751]
[1759408438770,0.85026312,1054.9,1054.1,1.29770751]
[1759408445377,0.85026312,1054.8,1054.1,1.29770751]
[1759408446276,0.85026312,1055.0,1054.1,1.29770751]
[1759408446784,0.85026312,1055.0,1054.2,1.089]
[1759408447083,0.85026312,1055.1,1054.2,1.093]
[1759408447283,1.01524715,1055.2,1054.2,1.093]
[1759408448585,0.16498403,1055.2,1054.2,1.093]
[1759408448784,0.85026312,1055.7,1054.2,1.093]
[1759408449185,0.1649551,1055.4,1054.2,1.093]
[1759408453987,0.1649551,1055.4,1054.3,1.43563667]
[1759408454187,0.1649551,1055.4,1054.3,1.43963667]
[1759408457592,1.01521822,1055.4,1054.4,1.42298291]
[1759408457788,1.01521822,1055.4,1054.4,1.42698291]
[1759408458593,0.85026312,1055.3,1054.4,1.42698291]
[1759408459991,0.85026312,1055.2,1054.4,1.42698291]
[1759408461490,0.85026312,1055.3,1054.4,1.42698291]
[1759408461791,0.85026312,1055.2,1054.4,1.42698291]
[1759408462893,0.85026312,1055.1,1054.4,1.42698291]
[1759408463189,0.85026312,1055.2,1054.4,1.42698291]
[1759408470994,0.85026312,1055.1,1054.4,1.42698291]
[1759408471198,0.85026312,1055.0,1054.4,1.42698291]
[1759408472500,0.85026312,1055.1,1054.4,1.42698291]
[1759408473198,0.85026312,1055.0,1054.4,1.42698291]
[1759408473700,0.85026312,1055.1,1054.4,1.42698291]
[1759408474200,0.85026312,1055.0,1054.4,1.42698291]
[1759408476998,0.85026312,1055.1,1054.4,1.42698291]
[1759408481207,0.85026312,1054.9,1054.4,1.42698291]
[1759408481505,0.85026312,1054.8,1054.4,1.42698291]
[1759408482405,0.85026312,1054.9,1054.4,1.42698291]
[1759408483304,0.85026312,1054.8,1054.4,1.42698291]
[1759408486503,0.85026312,1054.9,1054.4,1.42698291]
[1759408487708,0.85026312,1055.0,1054.4,1.42698291]
[1759408488406,0.85026312,1055.1,1054.4,1.42698291]
[1759408489203,0.85026312,1055.2,1054.4,1.42698291]
[1759408489502,0.85026312,1055.1,1054.4,1.42698291]
[1759408489706,0.85026312,1055.2,1054.4,1.42698291]
[1759408490105,0.85026312,1055.3,1054.4,1.42698291]
[1759408493306,1.01521822,1055.4,1054.4,1.42698291]
[1759408498216,0.85026312,1055.3,1054.4,1.42698291]
[1759408499815,0.85026312,1055.1,1054.4,1.42698291]
[1759408500320,0.85026312,1055.2,1054.4,1.42698291]
[1759408504322,0.85026312,1055.2,1054.5,0.764]
[1759408504720,0.85026312,1055.3,1054.5,0.764]
[1759408505122,1.01521822,1055.4,1054.5,0.764]
[1759408506124,0.1649551,1055.4,1054.5,0.764]
[1759408510626,0.85026312,1055.3,1054.5,0.764]
[1759408510827,0.85026312,1055.1,1054.5,0.764]
[1759408513827,0.85026312,1055.3,1054.5,0.764]
[1759408515026,0.1649551,1055.4,1054.5,0.764]
[1759408516426,1.01521822,1055.4,1054.5,0.764]
[1759408517431,0.85026312,1055.3,1054.5,0.764]
[1759408517728,0.1649551,1055.4,1054.5,0.764]
[1759408518127,1.01521822,1055.4,1054.5,0.764]
[1759408519331,0.85026312,1055.0,1054.5,0.764]
[1759408519728,0.85026312,1055.2,1054.5,0.764]
[1759408520334,0.85026312,1055.2,1054.4,1.42698291]
[1759408522132,0.85026312,1055.3,1054.4,1.42698291]
[1759408522636,1.01521822,1055.4,1054.4,1.42698291]
[1759408522835,1.01521822,1055.4,1054.5,0.947]
[1759408523035,0.85026312,1055.3,1054.5,0.947]
[1759408523641,0.85026312,1055.0,1054.5,0.947]
[1759408524741,0.85026312,1055.1,1054.5,0.947]
[1759408525036,0.85026312,1055.0,1054.5,0.947]
[1759408526243,0.85026312,1055.1,1054.5,0.947]
[1759408526741,1.01521822,1055.4,1054.5,0.947]
[1759408526943,0.85026312,1055.3,1054.5,0.947]
[1759408527140,0.85026312,1055.2,1054.5,0.947]
[1759408528344,0.85026312,1055.1,1054.5,0.947]
[1759408528742,0.85026312,1055.2,1054.5,0.947]
[1759408528939,0.1649551,1055.4,1054.5,0.947]
[1759408528940,0.85026312,1054.9,1054.5,0.947]
[1759408529441,0.85026312,1055.0,1054.5,0.947]
[1759408534944,0.85026312,1055.1,1054.5,0.947]
[1759408536646,0.85026312,1055.0,1054.5,0.947]
[1759408537648,0.85026312,1054.9,1054.5,0.947]
[1759408539947,0.85026312,1054.8,1054.5,0.947]
[1759408540653,0.85026312,1054.9,1054.5,0.947]
[1759408541856,0.85026312,1054.9,1054.4,1.42698291]
[1759408543255,0.85026312,1054.8,1054.4,1.42698291]
[1759408544356,0.85026312,1054.8,1054.5,0.951]
[1759408545355,0.85026312,1054.9,1054.5,0.951]
[1759408546551,0.85026312,1054.8,1054.5,0.951]
[1759408547252,1.27463761,1055.1,1054.5,0.951]
[1759408547453,1.01521822,1055.4,1054.5,0.951]
[1759408548259,0.85026312,1055.3,1054.5,0.951]
[1759408548557,0.85026312,1055.2,1054.5,0.951]
[1759408550756,0.85026312,1055.1,1054.5,0.951]
[1759408552960,0.85026312,1055.0,1054.5,0.951]
[1759408554467,0.85026312,1055.1,1054.5,0.951]
[1759408554761,0.85026312,1055.0,1054.5,0.951]
[1759408554965,0.85026312,1055.1,1054.5,0.951]
[1759408555865,0.85026312,1055.0,1054.5,0.951]
[1759408556663,0.85026312,1055.1,1054.5,0.951]
[1759408560871,0.85026312,1055.2,1054.5,0.951]
[1759408562069,0.85026312,1055.1,1054.5,0.951]
[1759408562768,0.85026312,1055.1,1054.6,1.54652177]
[1759408562969,0.85026312,1055.1,1054.6,1.55052177]
[1759408563869,0.85026312,1054.9,1054.6,1.55052177]
[1759408566071,0.85026312,1055.3,1054.6,1.55052177]
[1759408566270,0.85026312,1055.3,1054.6,1.58129653]
[1759408568573,0.85026312,1055.2,1054.6,1.58129653]
[1759408568975,0.85026312,1055.3,1054.6,1.58129653]
[1759408569177,0.85026312,1055.2,1054.6,1.58129653]
[1759408569376,0.85026312,1055.1,1054.6,1.58129653]
[1759408571372,1.43959271,1055.4,1054.6,1.58129653]
[1759408571373,0.85026312,1055.2,1054.6,1.58129653]
[1759408571672,0.85026312,1055.3,1054.6,1.58129653]
[1759408572773,1.01521822,1055.4,1054.6,1.58129653]
[1759408574575,0.85026312,1055.3,1054.6,1.58129653]
[1759408578580,0.85026312,1055.1,1054.6,1.58129653]
[1759408578876,0.85026312,1055.2,1054.6,1.58129653]
[1759408579876,1.01521822,1055.4,1054.6,1.58129653]
[1759408580478,0.85026312,1055.4,1054.6,1.58129653]
[1759408581082,0.85026312,1055.3,1054.6,1.58129653]
[1759408581581,0.85026312,1055.4,1054.6,1.58129653]
[1759408584785,0.85026312,1055.4,1054.7,1.41484123]
[1759408584981,0.85026312,1055.4,1054.7,1.41884123]
[1759408585586,0.16496839,1055.3,1054.7,1.41884123]
[1759408586383,0.85026312,1055.2,1054.7,1.41884123]
[1759408588389,0.85026312,1055.2,1054.8,1.426005]
[1759408588584,0.85026312,1055.2,1054.8,1.430005]
[1759408590386,0.16496839,1055.3,1054.8,1.430005]
[1759408595889,1.01523151,1055.3,1054.8,1.430005]
[1759408596193,1.01523151,1055.3,1054.9,0.763]
[1759408597488,0.85026312,1055.2,1054.9,0.763]
[1759408598693,1.01523151,1055.3,1054.9,0.763]
[1759408598892,0.85026312,1055.2,1054.9,0.763]
[1759408599397,0.85026312,1055.4,1054.9,0.763]
[1759408599594,0.85026312,1055.5,1054.9,0.763]
[1759408599792,1.01519946,1055.5,1054.9,0.763]
[1759408600892,0.16493634,1055.5,1054.9,0.763]
[1759408601193,1.01519946,1055.5,1054.9,0.763]
[1759408601396,0.16493634,1055.5,1054.9,0.763]
[1759408601696,1.01519946,1055.5,1054.9,0.763]
[1759408602396,0.85026312,1055.4,1054.9,0.763]
[1759408605596,0.85026312,1055.3,1054.9,0.763]
[1759408607302,0.85026312,1055.4,1054.9,0.763]
[1759408612407,0.85026312,1055.4,1055.0,1.45145798]
[1759408612609,0.85026312,1055.4,1055.0,1.45545798]
[1759408612908,0.85026312,1055.3,1055.0,1.45545798]
[1759408613304,0.16493634,1055.5,1055.0,1.45545798]
[1759408614707,1.01519946,1055.5,1055.0,1.45545798]
[1759408615107,0.85026312,1055.3,1055.0,1.45545798]
[1759408615809,0.85026312,1055.3,1055.1,1.4748749]
[1759408616006,0.85026312,1055.3,1055.1,1.4788749]
[1759408617204,0.85026312,1055.3,1053.7,0.85112856]
[1759408617409,0.85026312,1055.2,1053.7,0.85112856]
[1759408617807,0.85026312,1055.2,1053.8,0.75]
[1759408618013,0.85026312,1055.3,1053.9,1.45277516]
[1759408620510,0.85026312,1055.4,1053.9,1.45277516]
[1759408622013,0.16493634,1055.5,1053.9,1.45277516]
[1759408624815,0.85026312,1055.4,1053.9,1.45277516]
[1759408626417,0.85026312,1055.3,1053.9,1.45277516]
[1759408626820,0.85026312,1055.4,1053.9,1.45277516]
[1759408632331,0.85026312,1055.4,1053.9,1.45277516]
[1759408632528,1.01519946,1055.5,1053.9,1.45277516]
[1759408632828,0.85026312,1055.4,1053.9,1.45277516]
[1759408634233,0.85026312,1055.2,1053.9,1.45277516]
[1759408634733,0.85026312,1055.3,1053.9,1.45277516]
[1759408635030,0.85026312,1055.3,1054.0,1.38784089]
[1759408635233,0.85026312,1055.3,1054.0,1.39184089]
[1759408637236,0.85026312,1055.2,1054.0,1.39184089]
[1759408638533,0.85026312,1055.2,1054.1,1.44441734]
[1759408639340,0.85026312,1055.1,1054.1,1.44441734]
[1759408640739,0.16493634,1055.5,1054.1,1.44441734]
[1759408642541,0.85026312,1055.4,1054.1,1.44441734]
[1759408643035,0.85026312,1055.1,1054.1,1.44441734]
[1759408644841,0.85026312,1055.0,1054.1,1.44441734]
[1759408645137,0.85026312,1055.1,1054.1,1.44441734]
[1759408646042,0.85026312,1055.1,1054.2,1.43430846]
[1759408646242,0.85026312,1055.1,1054.2,1.43830846]
[1759408648143,0.85026312,1055.1,1054.3,0.979]
[1759408649343,0.85026312,1055.1,1054.4,1.45218192]
[1759408649639,0.85026312,1055.3,1054.4,1.45618192]
[1759408650038,0.85026312,1055.4,1054.4,1.45618192]
[1759408651543,0.85026312,1055.1,1054.4,1.45618192]
[1759408651745,0.85026312,1055.1,1054.5,1.43367881]
[1759408652045,0.85026312,1055.1,1054.5,1.43767881]
[1759408652645,0.85026312,1055.3,1054.5,1.43767881]
[1759408654747,0.16493634,1055.5,1054.5,1.43767881]
[1759408654948,1.01519946,1055.5,1054.5,1.43767881]
[1759408655147,0.85026312,1055.4,1054.5,1.43767881]
[1759408655648,0.85026312,1055.4,1054.6,1.44518447]
[1759408655949,1.01519946,1055.5,1054.6,1.44918447]
[1759408656648,0.85026312,1055.4,1054.6,1.44918447]